bitfinex-derivatives/quotes_BTCF0:USTF0_20241217
["timestamp","ask_amount","ask_price","bid_price","bid_amount"]
[1734399860291,0.01899585,106280.0,106270.0,0.7632349]
[1734399860788,0.01899585,106280.0,106270.0,0.74294615]
[1734399861488,0.00010971,106280.0,106270.0,0.74294615]
[1734399861680,0.00010971,106280.0,106270.0,0.9050112]
[1734399861881,0.00010971,106280.0,106270.0,0.9360112]
[1734399864685,0.00010971,106280.0,106270.0,0.8739112]
[1734399864891,0.00010971,106280.0,106270.0,0.74294615]
[1734399865188,0.0766033,106280.0,106270.0,0.74294615]
[1734399865392,0.1236363,106280.0,106270.0,0.38214615]
[1734399865984,0.4844363,106280.0,106270.0,0.66120086]
[1734399866182,0.1236363,106280.0,106270.0,0.66120086]
[1734399866386,0.1236363,106280.0,106270.0,0.38214615]
[1734399866786,0.4844363,106280.0,106270.0,0.66131906]
[1734399867089,0.4844363,106280.0,106270.0,0.32632143]
[1734399867588,0.4844363,106280.0,106270.0,0.27928343]
[1734399867793,1.9844363,106280.0,106270.0,0.27928343]
[1734399870478,1.6236363,106280.0,106270.0,0.27928343]
[1734399870890,1.9844363,106280.0,106270.0,0.27928343]
[1734399871093,1.6236363,106280.0,106270.0,0.27928343]
[1734399871584,1.9844363,106280.0,106270.0,0.27928343]
[1734399871784,1.6236363,106280.0,106270.0,0.27928343]
[1734399871979,1.6236363,106280.0,106270.0,0.61428106]
[1734399872284,1.9844363,106280.0,106270.0,0.33510815]
[1734399873085,1.6236363,106280.0,106270.0,0.33510815]
[1734399873692,0.4844363,106280.0,106270.0,0.33510815]
[1734399873993,0.1236363,106280.0,106270.0,0.33510815]
[1734399874378,0.4844363,106280.0,106270.0,0.33510815]
[1734399874685,0.1236363,106280.0,106270.0,0.33510815]
[1734399875187,0.4844363,106280.0,106270.0,0.33510815]
[1734399875599,0.1236363,106280.0,106270.0,0.33510815]
[1734399881789,0.4844363,106280.0,106270.0,0.33510815]
[1734399881992,0.50832213,106280.0,106270.0,0.33510815]
[1734399882503,0.14752213,106280.0,106270.0,0.33510815]
[1734399883502,0.50832213,106280.0,106270.0,0.33510815]
[1734399883693,0.14752213,106280.0,106270.0,0.33510815]
[1734399885000,0.50832213,106280.0,106270.0,0.33510815]
[1734399888297,0.59263878,106280.0,106270.0,0.33510815]
[1734399888807,0.64282849,106280.0,106260.0,0.08459037]
[1734399889101,0.57061787,106280.0,106270.0,0.27966206]
[1734399889410,1.01596421,106280.0,106270.0,0.27966206]
[1734399889699,0.90347876,106280.0,106270.0,0.27966206]
[1734399890095,1.06615392,106280.0,106270.0,0.27966206]
[1734399890286,2.09286847,106280.0,106270.0,0.27966206]
[1734399891097,2.09286847,106280.0,106270.0,0.45802771]
[1734399891098,0.00010971,106280.0,106270.0,0.45802771]
[1734399891296,0.00010971,106280.0,106270.0,0.58899276]
[1734399891507,0.08454634,106300.0,106290.0,0.047029]
[1734399891794,0.49236734,106310.0,106300.0,0.047024]
[1734399892002,0.56154609,106310.0,106300.0,0.32626937]
[1734399892305,0.56204609,106310.0,106300.0,0.32626937]
[1734399892494,0.5431361,106310.0,106300.0,0.32626937]
[1734399893205,0.5426361,106310.0,106300.0,0.32626937]
[1734399893408,0.45808976,106310.0,106300.0,0.32626937]
[1734399893799,0.10802466,106310.0,106300.0,0.407824]
[1734399894099,0.13426306,106310.0,106300.0,0.407824]
[1734399894406,0.13476306,106310.0,106300.0,0.407824]
[1734399895302,0.13426306,106310.0,106300.0,0.407824]
[1734399896304,0.13476306,106310.0,106300.0,0.407824]
[1734399897004,0.15400223,106310.0,106300.0,0.407824]
[1734399897206,0.15350223,106310.0,106300.0,0.407824]
[1734399898203,0.15400223,106310.0,106300.0,0.407824]
[1734399898905,0.047024,106300.0,106290.0,0.6863701]
[1734399899094,0.12345211,106300.0,106290.0,0.6863701]
[1734399899798,0.12345211,106300.0,106290.0,0.3255701]
[1734399899999,0.047024,106300.0,106290.0,0.3255701]
[1734399900303,1.62345211,106300.0,106290.0,0.3255701]
[1734399901513,1.547024,106300.0,106290.0,0.6863701]
[1734399901701,1.547024,106300.0,106290.0,0.3255701]
[1734399901901,0.047024,106300.0,106290.0,0.3255701]
[1734399902101,0.079924,106300.0,106290.0,0.3255701]
[1734399904801,0.15635211,106300.0,106290.0,0.3255701]
[1734399905010,0.15635211,106300.0,106290.0,0.2785421]
[1734399905393,0.15635211,106300.0,106280.0,0.7168741]
[1734399905600,0.15635211,106300.0,106290.0,0.2785421]
[1734399906706,0.51715211,106300.0,106290.0,0.2785421]
[1734399907002,0.51715211,106300.0,106270.0,0.56682465]
[1734399907003,0.047029,106290.0,106280.0,0.2785421]
[1734399907220,0.047033,106280.0,106270.0,0.3897791]
[1734399907511,0.12346111,106280.0,106270.0,0.3897791]
[1734399907899,0.047033,106280.0,106270.0,0.3897791]
[1734399908195,0.12346111,106280.0,106270.0,0.2785421]
[1734399908400,0.15536111,106280.0,106270.0,0.2785421]
[1734399911709,0.16576758,106280.0,106270.0,0.2785421]
[1734399915919,0.047038,106270.0,106260.0,0.2790421]
[1734399916221,0.18736611,106270.0,106260.0,0.2790421]
[1734399917420,0.079238,106270.0,106260.0,0.2790421]
[1734399917625,0.079238,106270.0,106260.0,0.6868841]
[1734399918128,0.04230647,106280.0,106270.0,0.047038]
[1734399918424,0.04230647,106280.0,106270.0,0.32575645]
[1734399919121,0.06082586,106280.0,106270.0,0.68655645]
[1734399919625,0.10785886,106280.0,106270.0,0.68655645]
[1734399922325,0.10785886,106280.0,106270.0,0.32575645]
[1734399922526,0.10785886,106280.0,106270.0,0.68655645]
[1734399923326,0.06082586,106280.0,106270.0,0.68655645]
[1734399924227,0.06082586,106280.0,106270.0,1.02092294]
[1734399925232,0.06082586,106280.0,106270.0,0.74220449]
[1734399925932,0.13725397,106280.0,106270.0,0.74220449]
[1734399926723,0.06082586,106280.0,106270.0,0.74220449]
[1734399927528,0.01851939,106280.0,106270.0,0.74220449]
[1734399928333,0.06869392,106280.0,106270.0,0.74220449]
[1734399928634,0.01851939,106280.0,106270.0,0.74220449]
[1734399929128,0.01851939,106280.0,106270.0,0.79237902]
[1734399929334,0.04220067,106290.0,106280.0,0.047033]
[1734399929532,0.0923752,106290.0,106280.0,0.6869086]
[1734399929723,0.01050067,106290.0,106280.0,0.79237402]
[1734399929923,1.64740472,106300.0,106290.0,0.047029]
[1734399930153,1.69757925,106300.0,106290.0,0.68684809]
[1734399930720,1.69757925,106300.0,106290.0,0.32604809]
[1734399931837,1.69757925,106300.0,106290.0,0.68684809]
[1734399932029,1.67367461,106300.0,106290.0,0.68684809]
[1734399932435,1.68387836,106300.0,106290.0,0.68684809]
[1734399932728,1.63685336,106300.0,106290.0,0.68684809]
[1734399933232,1.7213997,106300.0,106290.0,0.68684809]
[1734399933634,0.2213997,106300.0,106290.0,0.68684809]
[1734399933832,0.13685336,106300.0,106290.0,0.68684809]
[1734399934223,0.2213997,106300.0,106290.0,0.68684809]
[1734399935240,1.56040894,106300.0,106290.0,0.68684809]
[1734399937139,0.06040894,106300.0,106290.0,0.68684809]
[1734399937440,0.05020519,106300.0,106290.0,0.74219549]
[1734399937623,0.01850519,106300.0,106290.0,0.81863991]
[1734399937827,0.16109853,106310.0,106300.0,0.047024]
[1734399938024,0.07655219,106310.0,106300.0,0.047024]
[1734399938340,0.07655219,106310.0,106300.0,0.407824]
[1734399939337,0.07605219,106310.0,106300.0,0.407824]
[1734399939636,0.07605219,106310.0,106300.0,0.74219049]
[1734399939845,0.03257905,106310.0,106300.0,0.74219049]
[1734399940034,7.905e-05,106310.0,106300.0,0.74219049]
[1734399940237,7.905e-05,106310.0,106300.0,0.53878905]
[1734399940532,7.905e-05,106310.0,106300.0,1.24959996]
[1734399940836,0.0005,106320.0,106310.0,0.04702]
[1734399941041,0.08454634,106340.0,106310.0,0.89595543]
[1734399941338,0.4227,106350.0,106340.0,0.047007]
[1734399941538,0.44191828,106350.0,106340.0,0.047007]
[1734399941739,0.0812262,106350.0,106340.0,0.047007]
[1734399941928,0.0812262,106350.0,106340.0,0.407807]
[1734399943136,0.03100792,106350.0,106340.0,0.48425142]
[1734399943437,0.00010792,106350.0,106340.0,0.61521647]
[1734399943641,0.00010792,106350.0,106340.0,0.64521647]
[1734399947851,0.00010792,106350.0,106340.0,0.94521647]
[1734399949241,9.2e-07,106350.0,106340.0,0.94521647]
[1734399950541,9.2e-07,106350.0,106340.0,0.86877205]
[1734399950943,9.2e-07,106350.0,106340.0,0.87899762]
[1734399959553,9.2e-07,106350.0,106340.0,0.95544204]
[1734399960647,9.2e-07,106350.0,106340.0,0.87899762]
[1734399960951,9.2e-07,106350.0,106340.0,0.54899762]
[1734399961554,0.03060092,106350.0,106340.0,0.54899762]
[1734399962264,0.03060092,106350.0,106340.0,0.62544204]
[1734399962742,9.2e-07,106350.0,106340.0,0.62544204]
[1734399963056,9.2e-07,106350.0,106340.0,0.98844204]
[1734399963253,0.0625,106360.0,106340.0,0.98844204]
[1734399963254,0.0308,106360.0,106340.0,0.98844204]
[1734399963456,0.0308,106360.0,106350.0,0.48424642]
[1734399964046,0.0308,106360.0,106350.0,0.61521147]
[1734399964245,0.0313,106360.0,106350.0,0.61521147]
[1734399965254,0.0308,106360.0,106350.0,0.61521147]
[1734399966353,0.0313,106360.0,106350.0,0.61521147]
[1734399967357,0.0308,106360.0,106350.0,0.61521147]
[1734399968355,0.0631,106360.0,106350.0,0.53876705]
[1734399969450,0.0631,106360.0,106350.0,0.61521147]
[1734399975366,0.0631,106360.0,106350.0,0.69165589]
[1734399975556,0.0308,106360.0,106350.0,0.69165589]
[1734399979172,0.0330036,106370.0,106360.0,0.046998]
[1734399979354,0.0649036,106370.0,106360.0,0.48424242]
[1734399979754,0.0649036,106370.0,106360.0,0.61520747]
[1734399980258,0.0654036,106370.0,106360.0,0.61520747]
[1734399980760,0.0006036,106370.0,106360.0,0.61520747]
[1734399982267,0.08514994,106370.0,106360.0,0.61520747]
[1734399983358,0.08464994,106370.0,106360.0,0.61520747]
[1734399983758,0.0001036,106370.0,106360.0,0.61520747]
[1734399984058,0.08464994,106370.0,106360.0,0.61520747]
[1734399984281,0.0001036,106370.0,106360.0,0.61520747]
[1734399984773,0.17884634,106380.0,106360.0,0.91520747]
[1734399984774,0.031,106380.0,106360.0,0.91520747]
[1734399985068,0.031,106380.0,106370.0,0.48423842]
[1734399985363,0.0305,106380.0,106370.0,0.48423842]
[1734399985762,0.0306113,106380.0,106370.0,0.61520347]
[1734399986362,0.0311113,106380.0,106370.0,0.61520347]
[1734399987359,0.0306113,106380.0,106370.0,0.61520347]
[1734399988359,0.0311113,106380.0,106370.0,0.61520347]
[1734399989263,0.0306113,106380.0,106370.0,0.61520347]
[1734399990363,0.0311113,106380.0,106370.0,0.61520347]
[1734399991064,0.0311113,106380.0,106370.0,0.53875905]
[1734399991273,0.0609113,106380.0,106370.0,0.53875905]
[1734399991570,0.0609113,106380.0,106370.0,0.61520347]
[1734399991875,0.0609113,106380.0,106370.0,0.53875905]
[1734399992363,0.0614113,106380.0,106370.0,0.53875905]
[1734399993065,0.0614113,106380.0,106370.0,0.61520347]
[1734399994365,0.0609113,106380.0,106370.0,0.61520347]
[1734399995569,0.0306113,106380.0,106370.0,0.61520347]
[1734399999060,0.0001113,106380.0,106370.0,0.61520347]
[1734400005182,0.0319113,106380.0,106370.0,1.00630172]
[1734400005477,0.0648113,106380.0,106370.0,0.61520347]
[1734400007667,0.0648113,106380.0,106370.0,1.00630172]
[1734400011877,0.0648113,106380.0,106370.0,0.61520347]
[1734400012081,0.0648113,106380.0,106370.0,0.58882344]
[1734400012482,0.0648113,106380.0,106370.0,1.00985579]
[1734400013079,0.0648113,106380.0,106370.0,0.97992169]
[1734400013475,0.0648113,106380.0,106370.0,0.58882344]
[1734400015586,0.0319113,106380.0,106370.0,0.63888783]
[1734400015783,0.0319113,106380.0,106370.0,1.02998608]
[1734400016383,0.0319113,106380.0,106370.0,0.63888783]
[1734400016788,0.0319113,106380.0,106370.0,1.02998608]
[1734400019888,0.0632,106390.0,106380.0,0.046989]
[1734400020196,0.0956,106390.0,106380.0,0.50791778]
[1734400020593,0.0956,106390.0,106380.0,0.63888283]
[1734400020980,0.09569342,106390.0,106380.0,0.63888283]
[1734400021995,0.03019342,106390.0,106380.0,0.63888283]
[1734400022187,0.1,106400.0,106390.0,0.046985]
[1734400022386,0.1005,106400.0,106390.0,0.50791378]
[1734400022612,0.1005,106400.0,106390.0,0.45784939]
[1734400022888,0.1005,106400.0,106390.0,0.58881444]
[1734400023283,0.10006734,106400.0,106390.0,0.58881444]
[1734400023888,0.13326734,106400.0,106390.0,0.58881444]
[1734400024493,0.13376734,106400.0,106390.0,0.58881444]
[1734400029199,0.13376734,106400.0,106390.0,0.53875005]
[1734400030499,0.18383173,106400.0,106390.0,0.53875005]
[1734400030704,0.18383173,106400.0,106390.0,0.407785]
[1734400032005,0.18383173,106400.0,106390.0,0.357885]
[1734400032205,0.28087612,106400.0,106390.0,0.046985]
[1734400032415,0.23081173,106400.0,106390.0,0.046985]
[1734400032813,0.18383173,106400.0,106390.0,0.046985]
[1734400033310,0.18333173,106400.0,106390.0,0.046985]
[1734400034803,0.13326734,106400.0,106390.0,0.45784939]
[1734400040919,0.10006734,106400.0,106390.0,0.50791378]
[1734400041214,0.10006734,106400.0,106390.0,0.67219784]
[1734400041624,0.10006734,106400.0,106390.0,0.58893345]
[1734400043516,0.10006734,106400.0,106390.0,0.57206906]
[1734400043711,0.10006734,106400.0,106390.0,0.62213345]
[1734400044715,0.10006734,106400.0,106390.0,1.0132317]
[1734400044907,0.10006734,106400.0,106390.0,0.62213345]
[1734400045412,0.10006734,106400.0,106390.0,0.67219784]
[1734400045615,0.0331,106420.0,106410.0,0.046976]
[1734400045910,0.0331,106420.0,106410.0,0.45784039]
[1734400046219,0.0331,106420.0,106410.0,0.58880544]
[1734400046614,0.03317562,106420.0,106410.0,0.58880544]
[1734400047413,0.03367562,106420.0,106410.0,0.58880544]
[1734400048419,0.03317562,106420.0,106410.0,0.58880544]
[1734400049514,0.03367562,106420.0,106410.0,0.58880544]
[1734400050014,0.03367562,106420.0,106410.0,0.59856781]
[1734400050414,0.03317562,106420.0,106410.0,0.59856781]
[1734400051517,0.08374001,106420.0,106410.0,0.41753837]
[1734400051715,0.08374001,106420.0,106410.0,0.05673837]
[1734400051917,0.43071101,106420.0,106400.0,0.45784339]
[1734400052217,0.0636,106410.0,106400.0,0.09704339]
[1734400052423,0.11366439,106410.0,106400.0,0.046979]
[1734400052618,0.16064139,106410.0,106390.0,0.4579674]
[1734400052921,0.08036439,106400.0,106390.0,0.40790301]
[1734400053320,0.0303,106400.0,106390.0,0.40790301]
[1734400053524,0.08036439,106400.0,106390.0,0.40790301]
[1734400053916,0.0303,106400.0,106390.0,0.40790301]
[1734400054927,0.08036439,106400.0,106390.0,0.40790301]
[1734400058423,0.08036439,106400.0,106390.0,0.04710301]
[1734400062324,0.48107778,106410.0,106390.0,0.0971674]
[1734400062627,0.17034217,106410.0,106400.0,0.04698]
[1734400062930,0.53114217,106410.0,106390.0,0.40790301]
[1734400063123,0.08106439,106400.0,106390.0,0.04710301]
[1734400063725,0.13112878,106400.0,106390.0,0.04710301]
[1734400063932,0.83890878,106400.0,106390.0,0.04710301]
[1734400065730,2.33890878,106400.0,106390.0,0.04710301]
[1734400065931,2.33890878,106400.0,106380.0,0.0005]
[1734400065932,0.046985,106390.0,106380.0,0.0005]
[1734400066233,0.046989,106380.0,106370.0,0.046993]
[1734400066425,0.50791778,106380.0,106370.0,0.046993]
[1734400066931,0.45785039,106390.0,106370.0,0.09705839]
[1734400067228,0.45785039,106390.0,106380.0,0.046989]
[1734400067432,0.45785039,106390.0,106380.0,0.047489]
[1734400068151,0.48410038,106390.0,106380.0,0.047489]
[1734400068429,0.48410038,106390.0,106380.0,0.046989]
[1734400068924,0.12330038,106390.0,106380.0,0.046989]
[1734400069231,0.15560038,106390.0,106380.0,0.046989]
[1734400069433,0.18730038,106390.0,106380.0,0.047489]
[1734400070433,0.19700046,106390.0,106380.0,0.047489]
[1734400072526,0.12068608,106390.0,106380.0,0.047489]
[1734400074525,0.19700046,106390.0,106380.0,0.047489]
[1734400075235,0.19700046,106390.0,106380.0,0.408289]
[1734400076539,0.19700046,106390.0,106380.0,0.407789]
[1734400078037,0.21596829,106390.0,106380.0,0.407789]
[1734400080638,0.10735391,106390.0,106380.0,0.407789]
[1734400081831,2.08251959,106400.0,106390.0,0.046985]
[1734400081832,0.3608,106400.0,106390.0,0.046985]
[1734400082340,0.43711438,106400.0,106390.0,0.046985]
[1734400082933,0.3608,106400.0,106390.0,0.046985]
[1734400084040,2.13013202,106410.0,106400.0,0.04698]
[1734400084245,2.12961201,106410.0,106400.0,0.04698]
[1734400084438,2.12911201,106410.0,106400.0,0.04698]
[1734400085435,2.12961201,106410.0,106400.0,0.04698]
[1734400086532,2.12911201,106410.0,106400.0,0.04698]
[1734400087540,2.12961201,106410.0,106400.0,0.04698]
[1734400087733,1.76881201,106410.0,106400.0,0.04698]
[1734400088536,1.76831201,106410.0,106400.0,0.04698]
[1734400089148,1.6840068,106410.0,106400.0,0.04698]
[1734400089648,1.6845068,106410.0,106400.0,0.04698]
[1734400090046,1.65825384,106410.0,106400.0,0.04698]
[1734400090242,1.74255905,106410.0,106400.0,0.04698]
[1734400090442,1.74205905,106410.0,106400.0,0.04698]
[1734400091449,1.74255905,106410.0,106400.0,0.04698]
[1734400092338,1.65825384,106410.0,106400.0,0.04698]
[1734400092535,1.74205905,106410.0,106400.0,0.04698]
[1734400093148,1.65775384,106410.0,106400.0,0.04698]
[1734400093459,1.65825384,106410.0,106400.0,0.04698]
[1734400096351,2.06911526,106410.0,106390.0,0.3608]
[1734400096569,0.14710284,106400.0,106390.0,0.407784]
[1734400096753,0.17810284,106400.0,106390.0,0.407784]
[1734400097265,0.12804142,106400.0,106390.0,0.407784]
[1734400098457,0.12804142,106400.0,106390.0,0.046984]
[1734400098863,0.17810284,106400.0,106390.0,0.046984]
[1734400099765,0.12804142,106400.0,106390.0,0.046984]
[1734400100560,0.17810284,106400.0,106390.0,0.046984]
[1734400100747,0.29520805,106400.0,106390.0,0.046984]
[1734400101160,0.65600805,106400.0,106390.0,0.046984]
[1734400102060,0.24514663,106400.0,106390.0,0.046984]
[1734400102256,0.60594663,106400.0,106390.0,0.046984]
[1734400102450,0.24514663,106400.0,106390.0,0.046984]
[1734400104154,0.60594663,106400.0,106390.0,0.046984]
[1734400105255,0.29520805,106400.0,106390.0,0.046984]
[1734400105454,0.65600805,106400.0,106390.0,0.046984]
[1734400106762,0.29520805,106400.0,106390.0,0.046984]
[1734400106965,0.65600805,106400.0,106390.0,0.046984]
[1734400107662,0.046985,106390.0,106380.0,0.0005]
[1734400107860,0.49054642,106390.0,106380.0,0.0005]
[1734400108058,0.57485163,106390.0,106380.0,0.0005]
[1734400108255,0.49054642,106390.0,106380.0,0.0005]
[1734400108451,0.57485163,106390.0,106370.0,0.51223372]
[1734400108657,0.57485163,106390.0,106370.0,0.56229514]
[1734400108959,0.57485163,106390.0,106370.0,0.60928514]
[1734400109260,0.49054642,106390.0,106370.0,0.60928514]
[1734400109564,0.57485163,106390.0,106380.0,0.047489]
[1734400109770,0.12974642,106390.0,106380.0,0.047489]
[1734400110458,0.12974642,106390.0,106380.0,0.046989]
[1734400111559,0.49054642,106390.0,106380.0,0.0005]
[1734400111761,0.57485163,106390.0,106380.0,0.0005]
[1734400112473,0.046989,106380.0,106370.0,0.407792]
[1734400112655,0.09705042,106380.0,106370.0,0.046992]
[1734400113959,0.14711184,106380.0,106370.0,0.046992]
[1734400114159,0.18041184,106380.0,106370.0,0.046992]
[1734400114659,0.18041184,106380.0,106370.0,0.047492]
[1734400114964,0.21241184,106380.0,106370.0,0.047492]
[1734400115152,0.16235042,106380.0,106370.0,0.047492]
[1734400115461,0.21241184,106380.0,106370.0,0.0005]
[1734400116205,0.62327326,106380.0,106370.0,0.0005]
[1734400116673,0.65751705,106380.0,106370.0,0.0005]
[1734400116861,0.70757847,106380.0,106370.0,0.0005]
[1734400117063,0.65751705,106380.0,106370.0,0.0005]
[1734400117255,1.00766378,106380.0,106370.0,0.0005]
[1734400117456,0.046994,106370.0,106360.0,0.00011374]
[1734400117662,0.50791684,106370.0,106360.0,0.00011374]
[1734400117855,2.09222205,106370.0,106360.0,0.00011374]
[1734400119859,2.00791684,106370.0,106360.0,0.00011374]
[1734400120061,0.047007,106340.0,106330.0,0.69424013]
[1734400120269,0.14712984,106340.0,106330.0,0.3608]
[1734400120568,0.047011,106330.0,106320.0,0.74125513]
[1734400120775,0.09707242,106330.0,106320.0,0.74125513]
[1734400121269,0.047011,106330.0,106320.0,0.45787642]
[1734400121464,0.09707242,106330.0,106320.0,0.45787642]
[1734400122765,0.09707242,106330.0,106320.0,0.407815]
[1734400125271,0.09707242,106330.0,106320.0,0.45787642]
[1734400125573,0.047011,106330.0,106320.0,0.45787642]
[1734400126364,0.09707242,106330.0,106320.0,0.407815]
[1734400126668,0.09707242,106330.0,106320.0,0.047015]
[1734400127468,0.09707242,106330.0,106310.0,0.64408986]
[1734400127669,0.12987242,106330.0,106310.0,0.83050275]
[1734400128761,0.05006142,106320.0,106310.0,0.50343209]
[1734400128962,0.05006142,106320.0,106310.0,0.43953209]
[1734400129161,0.079811,106330.0,106310.0,0.43953209]
[1734400129162,0.12987242,106330.0,106310.0,0.43953209]
[1734400129572,0.12987242,106330.0,106310.0,0.44003209]
[1734400130271,0.12987242,106330.0,106320.0,0.047016]
[1734400131475,0.12987242,106330.0,106320.0,0.407816]
[1734400132566,0.14821575,106330.0,106320.0,0.047016]
[1734400132770,0.14821575,106330.0,106320.0,0.407816]
[1734400133676,0.14821575,106330.0,106320.0,0.047016]
[1734400135075,0.12987242,106330.0,106320.0,0.047016]
[1734400137769,0.148292,106330.0,106320.0,0.047016]
[1734400138275,0.101281,106330.0,106310.0,0.44307451]
[1734400138474,0.047016,106320.0,106310.0,0.49009151]
[1734400139381,0.047016,106320.0,106310.0,0.44003009]
[1734400142166,0.509093,106330.0,106320.0,0.047016]
[1734400142977,0.148293,106330.0,106320.0,0.047016]
[1734400145470,0.23259821,106330.0,106320.0,0.047016]
[1734400146865,0.047016,106320.0,106310.0,0.00011309]
[1734400147169,0.04702,106310.0,106300.0,0.3783665]
[1734400147370,0.62441589,106310.0,106300.0,0.3783665]
[1734400147574,0.57435447,106310.0,106300.0,0.1]
[1734400148573,0.57435447,106310.0,106300.0,0.1005]
[1734400149480,0.57435447,106310.0,106300.0,0.1]
[1734400149876,0.43992,106310.0,106300.0,0.147024]
[1734400150072,0.48998142,106310.0,106300.0,0.147024]
[1734400150681,0.48998142,106310.0,106300.0,0.4258905]
[1734400150682,0.12918142,106310.0,106300.0,0.4258905]
[1734400151377,0.12918142,106310.0,106300.0,0.1005]
[1734400151578,0.48998142,106310.0,106300.0,0.1]
[1734400151775,0.49955439,106310.0,106300.0,0.1]
[1734400151986,0.5259463,106310.0,106300.0,0.1]
[1734400152484,0.61031935,106310.0,106300.0,0.1005]
[1734400153585,0.61031935,106310.0,106300.0,0.1]
[1734400154682,0.61031935,106310.0,106300.0,0.1005]
[1734400154683,2.0259463,106310.0,106300.0,0.1005]
[1734400154887,0.5259463,106310.0,106300.0,0.1005]
[1734400155074,0.7228048,106310.0,106300.0,0.1005]
[1734400155583,0.047029,106290.0,106280.0,0.00011113]
[1734400155878,0.407829,106290.0,106280.0,0.00011113]
[1734400156179,0.48428233,106290.0,106280.0,0.00011113]
[1734400156374,0.60134995,106290.0,106280.0,0.00011113]
[1734400156573,0.440629,106290.0,106280.0,0.00011113]
[1734400156770,0.440629,106290.0,106280.0,0.04714413]
[1734400157482,0.51708233,106290.0,106280.0,0.04714413]
[1734400157980,0.15628233,106290.0,106280.0,0.04714413]
[1734400158871,0.079829,106290.0,106280.0,0.04714413]
[1734400160574,0.440629,106290.0,106280.0,0.04764413]
[1734400160784,0.079829,106290.0,106280.0,0.04764413]
[1734400161280,0.08942875,106290.0,106280.0,0.40844413]
[1734400162273,0.2308,106340.0,106280.0,0.40844413]
[1734400162477,0.548864,106350.0,106340.0,11.04861698]
[1734400162678,1.18208119,106350.0,106340.0,9.46823867]
[1734400162878,1.48208119,106350.0,106340.0,9.0273334]
[1734400163175,1.48208119,106350.0,106340.0,8.1456204]
[1734400163375,1.48217707,106350.0,106340.0,7.9624604]
[1734400164083,1.48217707,106350.0,106340.0,7.73835041]
[1734400164383,1.72905373,106350.0,106340.0,7.1223088]
[1734400164578,1.72905373,106350.0,106340.0,6.48510928]
[1734400164778,1.72905373,106350.0,106340.0,6.01490314]
[1734400164985,1.72905373,106350.0,106340.0,5.43042907]
[1734400165176,1.72905373,106350.0,106340.0,5.40842907]
[1734400165377,1.72905373,106350.0,106340.0,5.03750679]
[1734400165583,1.82355373,106350.0,106340.0,4.98497092]
[1734400165887,1.72958373,106350.0,106340.0,4.98497092]
[1734400167083,1.72958373,106350.0,106340.0,4.72340785]
[1734400168285,1.72958373,106350.0,106340.0,4.70350214]
[1734400168491,1.72958373,106350.0,106340.0,2.70350214]
[1734400168798,1.72958373,106350.0,106340.0,2.6024278]
[1734400168980,1.72958373,106350.0,106340.0,2.38595721]
[1734400169289,1.72958373,106350.0,106340.0,2.10139536]
[1734400169881,1.72958373,106350.0,106340.0,0.10139536]
[1734400171400,0.047011,106330.0,106320.0,0.16667405]
[1734400171697,0.12396433,106330.0,106320.0,0.16667405]
[1734400172083,0.18736433,106330.0,106320.0,0.16667405]
[1734400172389,0.48736433,106330.0,106320.0,0.16667405]
[1734400173690,0.84816433,106330.0,106320.0,0.16667405]
[1734400174993,0.54816433,106330.0,106320.0,0.16667405]
[1734400175294,0.84816433,106330.0,106320.0,0.16667405]
[1734400175495,0.84816433,106330.0,106320.0,0.22223206]
[1734400175898,0.54816433,106330.0,106320.0,0.22223206]
[1734400177518,0.471711,106330.0,106320.0,0.22223206]
[1734400177797,0.54766433,106330.0,106320.0,0.22223206]
[1734400178197,0.077511,106330.0,106320.0,0.22223206]
[1734400178397,0.047011,106330.0,106320.0,0.22223206]
[1734400178692,0.05662866,106330.0,106320.0,0.28523206]
[1734400178897,0.13308199,106330.0,106320.0,0.28523206]
[1734400180695,0.05662866,106330.0,106320.0,0.28523206]
[1734400183303,0.13308199,106330.0,106320.0,0.20755849]
[1734400183522,0.16418199,106330.0,106320.0,0.20755849]
[1734400183805,0.55698199,106330.0,106320.0,0.20755849]
[1734400184301,0.55698199,106330.0,106320.0,0.37507479]
[1734400185004,0.55698199,106330.0,106320.0,0.1675163]
[1734400186098,0.57562091,106330.0,106320.0,0.1675163]
[1734400190609,0.57562091,106330.0,106310.0,0.58165457]
[1734400190610,0.047016,106320.0,106310.0,0.3717665]
[1734400190799,0.12346933,106320.0,106310.0,0.3717665]
[1734400191311,0.12346933,106320.0,106310.0,0.58032583]
[1734400191806,0.12346933,106320.0,106310.0,0.58082583]
[1734400192002,0.12346933,106320.0,106310.0,0.94162583]
[1734400192205,0.12346933,106320.0,106310.0,0.58082583]
[1734400192705,0.12346933,106320.0,106310.0,0.58032583]
[1734400193326,0.12346933,106320.0,106310.0,0.94112583]
[1734400193611,0.12346933,106320.0,106310.0,0.94162583]
[1734400194111,0.09716959,106320.0,106310.0,0.58031079]
[1734400194308,0.09716959,106320.0,106310.0,0.94111079]
[1734400194510,0.09716959,106320.0,106310.0,0.58031079]
[1734400194808,0.09716959,106320.0,106310.0,0.57981079]
[1734400195008,0.14732318,106320.0,106310.0,0.57981079]
[1734400195409,0.14732318,106320.0,106310.0,0.55133758]
[1734400195608,0.64903999,106320.0,106310.0,0.06542679]
[1734400195810,0.50812318,106320.0,106310.0,0.06542679]
[1734400196206,0.1234535,106320.0,106310.0,0.06542679]
[1734400196410,0.1234535,106320.0,106310.0,0.34379329]
[1734400196614,0.1234535,106320.0,106310.0,0.06492679]
[1734400197104,0.1234535,106320.0,106310.0,0.34329329]
[1734400197709,0.1234535,106320.0,106310.0,0.34379329]
[1734400198415,0.1234535,106320.0,106310.0,0.55119658]
[1734400198603,0.1234535,106320.0,106310.0,0.550487]
[1734400199312,0.1234535,106320.0,106310.0,0.34379329]
[1734400199516,0.1234535,106320.0,106310.0,0.55086804]
[1734400199708,0.1234535,106320.0,106310.0,0.55036804]
[1734400199904,0.1234535,106320.0,106310.0,0.51986804]
[1734400200107,0.04702,106310.0,106300.0,0.61180663]
[1734400200423,0.04702,106310.0,106300.0,0.48589725]
[1734400200608,0.04702,106310.0,106300.0,0.48639725]
[1734400200807,0.12352928,106310.0,106300.0,0.69474013]
[1734400201007,0.12352928,106310.0,106300.0,0.90227088]
[1734400201616,0.12352928,106310.0,106300.0,0.90177088]
[1734400202008,0.12352928,106310.0,106300.0,0.84789605]
[1734400202204,0.12352928,106310.0,106300.0,1.18133618]
[1734400202619,0.12352928,106310.0,106300.0,1.18183618]
[1734400202823,0.12352928,106310.0,106300.0,0.84839605]
[1734400203616,0.12352928,106310.0,106300.0,0.84789605]
[1734400204620,0.12352928,106310.0,106300.0,0.84839605]
[1734400206116,0.12352928,106310.0,106300.0,0.6408653]
[1734400206313,0.12352928,106310.0,106300.0,0.84880859]
[1734400206917,0.15542928,106310.0,106300.0,0.77701259]
[1734400207226,0.18662928,106310.0,106300.0,0.0005]